[Event "17th Memorial Lezcano Montalvo 2025"]
[Site "Gran Canaria"]
[Date "2025.04.15"]
[Round "4.8"]
[White "Kaczur, Florian"]
[Black "Calzetta Ruiz, Monica"]
[Result "1-0"]
[Annotator "TA"]
[ECO "B50"]
[WhiteElo "2495"]
[BlackElo "2224"]
[PlyCount "83"]
[EventDate "2025.04.13"]
[EventType "swiss"]
[EventCountry "ESP"]
[SourceTitle "playchess.com"]
[Source "ChessBase"]
[SourceQuality "1"]
[TimeControl "5400+30"]

{[%evp 9,83,11,21,0,0,0,14,10,11,9,14,13,12,12,10,0,0,-7,7,13,0,15,12,-8,0,-16,-12,-16,-21,-31,-4,-4,-12,-30,-27,-23,25,20,19,9,23,27,42,37,56,34,37,16,11,12,28,0,58,61,76,66,102,108,102,80,95,54,163,154,272,263,270,268,265,256,239,195,242,240,206,160]} 1. e4 {[%emt 0:00:03]} c5 {[%emt 0:01:51]} 2. Nf3 {[%emt 0:00:25]} Nc6 {[%emt 0:00:06]} 3. Bc4 {[%emt 0:00:40]} d6 {[%emt 0:05:57]} 4. O-O {[%emt 0:01:33]} Nf6 {[%emt 0:00:10]} 5. Re1 {[%emt 0:02:53]} e6 {[%emt 0:02:12]} 6. d4 {[%emt 0:01:43]} cxd4 {[%emt 0:00:34]} 7. Nxd4 {[%emt 0:00:06]} Nxd4 {[%emt 0:18:12]} 8. Qxd4 {[%emt 0:00:17] The position is equal.} Be7 {[%emt 0:00:03]} 9. Nc3 {[%emt 0:00:53]} O-O {[%emt 0:03:35]} 10. Qd3 {[%emt 0:04:43]} a6 {[%emt 0:02:13]} 11. a4 {[%emt 0:00:25]} Bd7 {[%emt 0:00:46]} 12. a5 {[%emt 0:12:23]} Ng4 {[%emt 0:09:08]} 13. Qe2 {[%emt 0:18:39]} Ne5 {[%emt 0:05:06]} 14. Be3 {[%emt 0:03:13]} Nxc4 {[%emt 0:01:07]} 15. Qxc4 {[%emt 0:00:06]} Rc8 {[%emt 0:00:02]} 16. Qd3 {[%emt 0:06:21]} Qc7 {[%emt 0:00:45]} 17. Bd4 {[%emt 0:07:32]} Qc4 {[%emt 0:05:25]} 18. Qd2 {[%emt 0:00:18]} h6 {[%emt 0:07:36]} 19. f3 {[%emt 0:04:39]} Qb4 {[%emt 0:07:42][%cal Oc8c4] Black wants to play ...Rc4!} 20. Red1 {[%emt 0:08:28][%cal Oc3d5] [#] Nd5! would now be deadly.} Bd8 {[%emt 0:06:35]} (20... Qxb2 $2 {is the wrong capture.} 21. Rdb1 $18) 21. Ne2 {[%emt 0:11:18]} Qxd2 {[%emt 0:00:32]} 22. Rxd2 {[%emt 0:01:13]} Rc6 {[%emt 0:01:49]} (22... Bg5 $142 23. f4 Be7) 23. Be3 $11 {[%emt 0:01:07]} Be7 {[%emt 0:01:40]} 24. Rad1 {[%emt 0:00:58]} Rfc8 {[%emt 0:00:11]} 25. c3 {[%emt 0:00:31]} Be8 {[%emt 0:04:47]} 26. Bb6 {[%emt 0:00:31]} g6 {[%emt 0:05:24]} 27. Kf2 {[%emt 0:00:15]} e5 {[%emt 0:00:23]} 28. Nc1 {[%emt 0:01:10][%cal Be2c1,Bc1d3,Bd3b4,Bb4d5,Bd5e3,Be3f5][%mdl 32]} f5 {[%emt 0:00:10]} 29. exf5 {[%emt 0:01:47]} gxf5 {[%emt 0:00:02]} 30. f4 {[%emt 0:00:06]} Bh5 {[%emt 0:02:13]} (30... Rc4 $11 31. Nd3 exf4) 31. Re1 $1 $14 {[%emt 0:00:23]} Re8 {[%emt 0:06:26]} 32. Nd3 {[%emt 0:00:27]} Bf6 {[%emt 0:00:22]} 33. Nb4 {[%emt 0:00:32]} Rc4 {[%emt 0:00:01]} 34. Nd5 {[%emt 0:01:02]} Bg7 {[%emt 0:00:21] Black is weak on the dark squares} 35. g3 {[%emt 0:00:36]} Kf7 {[%emt 0:03:46]} (35... Bf7 $14) 36. Ne3 $36 {[%emt 0:00:35][%csl LRc4,LRd6,LRf5][%mdl 2048] Black is under strong pressure.} Re4 {[%emt 0:00:10]} (36... Rc6 $16 37. Nxf5 Bf8) 37. Nxf5 {[%emt 0:01:06]} (37. Rxd6 exf4 38. Rd7+ Kg6 39. gxf4 Rxf4+ 40. Kg2 Be5 $17) 37... Rxe1 {[%emt 0:00:11]} 38. Nxd6+ {[%emt 0:00:23]} ({Much less strong is} 38. Kxe1 exf4+ 39. Kf1 Kg6 40. Nxd6 Rf8 $18) 38... Kg8 {[%emt 0:00:31] [#] And now ...Rh1 would win.} 39. Nxe8 {[%emt 0:03:10]} Rh1 {[%emt 0:01:10]} 40. Kg2 {[%emt 0:00:22] White is clearly better.} Re1 {[%emt 0:00:42]} (40... Rd1 $142 41. Rxd1 Bxd1 42. Nxg7 Kxg7 43. fxe5 Kf7) 41. Nxg7 {[%emt 0:00:11]} Kxg7 {[%emt 0:00:02]} 42. fxe5 {[%emt 0:00:08] Weighted Error Value: White=0.10 (very precise) /Black=0.18 (very precise) .  Mistake:       	---       	Black=5      Inaccurate:     	White=2     	Black=2      OK:         	White=8     	Black=14     Best:        	White=5     	Black=1      Strong:       	White=1     	---} 1-0

[Event "17th Memorial Lezcano Montalvo 2025"]
[Site "Gran Canaria"]
[Date "2025.04.15"]
[Round "4.9"]
[White "Rodriguez Lopez, David"]
[Black "Korneev, Oleg"]
[Result "0-1"]
[Annotator "RC"]
[ECO "B13"]
[WhiteElo "2182"]
[BlackElo "2466"]
[PlyCount "118"]
[EventDate "2025.04.13"]
[EventType "swiss"]
[EventCountry "ESP"]
[SourceTitle "playchess.com"]
[Source "ChessBase"]
[SourceQuality "1"]
[TimeControl "5400+30"]

1. e4 {[%emt 0:00:03]} c6 {[%emt 0:09:19]} 2. d4 {[%emt 0:00:13]} d5 {[%emt 0:00:11]} 3. exd5 {[%emt 0:00:14]} cxd5 {[%emt 0:00:06]} 4. Bd3 {[%emt 0:00:14]} Nc6 {[%emt 0:00:06]} 5. c3 {[%emt 0:00:10]} Qc7 {[%emt 0:01:16]} 6. Nf3 {[%emt 0:04:32]} Bg4 {[%emt 0:00:49]} 7. Bg5 {[%emt 0:06:12]} e6 {[%emt 0:01:17]} 8. Bh4 {[%emt 0:02:17]} Bd6 {[%emt 0:01:24]} 9. Bg3 {[%emt 0:00:32]} Nf6 {[%emt 0:07:01]} 10. Bxd6 {[%emt 0:04:10]} Qxd6 {[%emt 0:00:03]} 11. Nbd2 {[%emt 0:00:07]} O-O {[%emt 0:00:18]} 12. O-O {[%emt 0:00:20]} Rab8 {[%emt 0:03:34]} 13. a4 {[%emt 0:00:59]} a6 {[%emt 0:00:49]} 14. h3 {[%emt 0:12:50]} Bh5 {[%emt 0:06:34]} 15. Qe2 {[%emt 0:05:51]} Qc7 {[%emt 0:04:55]} 16. Rfe1 {[%emt 0:01:41]} Rfc8 {[%emt 0:08:13]} 17. Qf1 {[%emt 0:09:20]} Bg6 {[%emt 0:12:06]} 18. Re3 {[%emt 0:02:38]} Bxd3 {[%emt 0:02:09]} 19. Qxd3 {[%emt 0:00:25]} h6 {[%emt 0:05:02]} 20. Ne5 {[%emt 0:30:59]} Nxe5 {[%emt 0:00:29]} 21. dxe5 {[%emt 0:00:06]} Nd7 {[%emt 0:00:13]} 22. Qd4 {[%emt 0:00:09]} Qb6 {[%emt 0:02:28]} 23. Qxb6 {[%emt 0:05:37]} Nxb6 {[%emt 0:00:08]} 24. a5 {[%emt 0:00:22]} Nc4 {[%emt 0:01:34]} 25. Nxc4 {[%emt 0:00:09]} Rxc4 {[%emt 0:00:04]} 26. Kf1 {[%emt 0:07:01]} Rbc8 {[%emt 0:02:22]} 27. Ra3 {[%emt 0:02:06]} g5 {[%emt 0:03:30]} 28. f3 {[%emt 0:00:19]} Kg7 {[%emt 0:02:19]} 29. Ke1 {[%emt 0:01:43]} d4 {[%emt 0:06:41]} 30. cxd4 {[%emt 0:00:39]} Rxd4 {[%emt 0:00:17]} 31. Rab3 {[%emt 0:01:33]} Rc7 {[%emt 0:10:09]} 32. Rb6 {[%emt 0:01:30]} Ra4 {[%emt 0:00:29]} 33. b4 {[%emt 0:00:10]} Rc4 {[%emt 0:00:09]} 34. Re4 {[%emt 0:00:56]} Rc7 {[%emt 0:02:53]} 35. Kf2 {[%emt 0:00:01]} h5 {[%emt 0:01:31]} 36. g4 {[%emt 0:00:23]} h4 {[%emt 0:00:05]} 37. Re2 {[%emt 0:00:29]} Ra3 {[%emt 0:02:00]} 38. Re3 {[%emt 0:00:10]} Rc2+ {[%emt 0:00:17]} 39. Re2 {[%emt 0:00:01]} Rcc3 {[%emt 0:00:12]} 40. Rxb7 {[%emt 0:01:37]} Rxf3+ {[%emt 0:00:03]} 41. Kg2 {[%emt 0:01:00]} Rg3+ {[%emt 0:01:09]} 42. Kf1 {[%emt 0:00:01]} Ra1+ {[%emt 0:01:51]} 43. Re1 {[%emt 0:00:33]} Rxe1+ {[%emt 0:00:46]} 44. Kxe1 {[%emt 0:00:01]} Rxh3 {[%emt 0:00:07]} 45. b5 {[%emt 0:01:46]} Re3+ {[%emt 0:00:29]} 46. Kf2 {[%emt 0:00:41]} Rxe5 {[%emt 0:00:04]} 47. bxa6 {[%emt 0:00:16]} Rxa5 {[%emt 0:06:29]} 48. a7 {[%emt 0:00:06]} Ra2+ {[%emt 0:00:00]} 49. Kg1 {[%emt 0:00:07]} Kg6 {[%emt 0:00:00]} 50. Re7 {[%emt 0:00:09]} e5 {[%emt 0:00:00]} 51. Rd7 {[%emt 0:01:00]} e4 {[%emt 0:00:00]} 52. Rd6+ {[%emt 0:00:35]} f6 {[%emt 0:00:00]} 53. Rd7 {[%emt 0:00:23]} e3 {[%emt 0:00:00]} 54. Re7 {[%emt 0:00:03]} Ra1+ {[%emt 0:00:00]} 55. Kg2 {[%emt 0:00:33]} e2 {[%emt 0:00:00]} 56. Rxe2 {[%emt 0:01:00]} Rxa7 {[%emt 0:00:00]} 57. Re3 {[%emt 0:00:09]} Ra6 {[%emt 0:00:25]} 58. Rf3 {[%emt 0:00:06]} Ra5 {[%emt 0:00:55]} 59. Rb3 {[%emt 0:00:30]} f5 {[%emt 0:00:50]} 0-1

[Event "17th Memorial Lezcano Montalvo 2025"]
[Site "Gran Canaria"]
[Date "2025.04.15"]
[Round "4.10"]
[White "Ambartsumova, Karina"]
[Black "Estremera Panos, Sergio"]
[Result "1-0"]
[Annotator "RC"]
[ECO "A64"]
[WhiteElo "2405"]
[BlackElo "2195"]
[PlyCount "63"]
[EventDate "2025.04.13"]
[EventType "swiss"]
[EventCountry "ESP"]
[SourceTitle "playchess.com"]
[Source "ChessBase"]
[SourceQuality "1"]
[TimeControl "5400+30"]

1. d4 {[%emt 0:00:10]} Nf6 {[%emt 0:02:24]} 2. c4 {[%emt 0:00:42]} e6 {[%emt 0:00:27]} 3. g3 {[%emt 0:01:19]} c5 {[%emt 0:01:05]} 4. d5 {[%emt 0:01:45]} exd5 {[%emt 0:00:09]} 5. cxd5 {[%emt 0:00:06]} d6 {[%emt 0:00:08]} 6. Nc3 {[%emt 0:01:01]} g6 {[%emt 0:00:14]} 7. Nf3 {[%emt 0:02:10]} Bg7 {[%emt 0:00:23]} 8. Bg2 {[%emt 0:01:00]} O-O {[%emt 0:00:13]} 9. O-O {[%emt 0:00:50]} Re8 {[%emt 0:00:26]} 10. Nd2 {[%emt 0:06:26]} a6 {[%emt 0:00:43]} 11. a4 {[%emt 0:00:31]} Nbd7 {[%emt 0:00:19]} 12. h3 {[%emt 0:08:27]} Rb8 {[%emt 0:02:19]} 13. a5 {[%emt 0:01:03]} b5 {[%emt 0:02:11]} 14. axb6 {[%emt 0:00:55]} Nxb6 {[%emt 0:01:13]} 15. Re1 {[%emt 0:01:10]} Nfd7 {[%emt 0:15:04]} 16. Qc2 {[%emt 0:30:17]} Qc7 {[%emt 0:22:38]} 17. b3 {[%emt 0:03:40]} c4 {[%emt 0:01:34]} 18. b4 {[%emt 0:01:10]} Ne5 {[%emt 0:13:09]} 19. Bb2 {[%emt 0:01:48]} Bf5 {[%emt 0:16:01]} 20. Qc1 {[%emt 0:06:21]} Na8 {[%emt 0:02:26]} 21. Rxa6 {[%emt 0:10:24]} Rxb4 {[%emt 0:02:55]} 22. Ba1 {[%emt 0:00:47]} Nb6 {[%emt 0:04:06]} 23. Qa3 {[%emt 0:03:57]} Nd3 {[%emt 0:08:43]} 24. Rf1 {[%emt 0:01:10]} Nc5 {[%emt 0:00:01]} 25. Ra5 {[%emt 0:03:53]} Rb3 {[%emt 0:01:19]} 26. Nxb3 {[%emt 0:00:23]} Nxb3 {[%emt 0:01:33]} 27. Nb5 {[%emt 0:05:34]} Qb8 {[%emt 0:00:51]} 28. Bxg7 {[%emt 0:00:46]} Kxg7 {[%emt 0:01:12]} 29. Nxd6 {[%emt 0:00:45]} Rxe2 {[%emt 0:00:37]} 30. Nxf5+ {[%emt 0:00:38]} gxf5 {[%emt 0:00:01]} 31. Rb5 {[%emt 0:00:51]} Qd8 {[%emt 0:00:56]} 32. Qb4 {[%emt 0:00:41]} 1-0

[Event "17th Memorial Lezcano Montalvo 2025"]
[Site "Gran Canaria"]
[Date "2025.04.15"]
[Round "4.11"]
[White "Dubkov, Andrej"]
[Black "Krilovs, Nikolajs"]
[Result "1/2-1/2"]
[Annotator "RC"]
[ECO "A07"]
[WhiteElo "2307"]
[BlackElo "2112"]
[PlyCount "29"]
[EventDate "2025.04.13"]
[EventType "swiss"]
[EventCountry "ESP"]
[SourceTitle "playchess.com"]
[Source "ChessBase"]
[SourceQuality "1"]
[TimeControl "5400+30"]

1. Nf3 {[%emt 0:01:17]} d5 {[%emt 0:00:35]} 2. g3 {[%emt 0:00:07]} Bf5 {[%emt 0:00:06]} 3. Bg2 {[%emt 0:00:06]} e6 {[%emt 0:00:08]} 4. O-O {[%emt 0:00:19]} h6 {[%emt 0:00:16]} 5. c4 {[%emt 0:00:21]} c6 {[%emt 0:00:22]} 6. Qb3 {[%emt 0:00:08]} Qb6 {[%emt 0:02:17]} 7. d3 {[%emt 0:03:41]} Nf6 {[%emt 0:01:49]} 8. Qc2 {[%emt 0:01:34]} Be7 {[%emt 0:03:50]} 9. cxd5 {[%emt 0:00:07]} exd5 {[%emt 0:00:33]} 10. Nc3 {[%emt 0:00:06]} Bh7 {[%emt 0:05:58]} 11. e4 {[%emt 0:00:09]} O-O {[%emt 0:01:00]} 12. Be3 {[%emt 0:21:37]} Qa6 {[%emt 0:02:06]} 13. Rfd1 {[%emt 0:24:21]} Nbd7 {[%emt 0:05:11]} 14. h3 {[%emt 0:02:06]} Rfd8 {[%emt 0:05:05]} 15. exd5 {[%emt 0:11:25]} 1/2-1/2

[Event "17th Memorial Lezcano Montalvo 2025"]
[Site "Gran Canaria"]
[Date "2025.04.15"]
[Round "4.12"]
[White "Rodriguez Melian, Jose Luis"]
[Black "Maerevoet, Sim"]
[Result "0-1"]
[Annotator "RC"]
[ECO "E04"]
[WhiteElo "2029"]
[BlackElo "2451"]
[PlyCount "78"]
[EventDate "2025.04.13"]
[EventType "swiss"]
[EventCountry "ESP"]
[SourceTitle "playchess.com"]
[Source "ChessBase"]
[SourceQuality "1"]
[TimeControl "5400+30"]

1. d4 {[%emt 0:00:01]} Nf6 {[%emt 0:02:25]} 2. c4 {[%emt 0:00:04]} e6 {[%emt 0:00:06]} 3. g3 {[%emt 0:00:05]} d5 {[%emt 0:01:00]} 4. Bg2 {[%emt 0:00:06]} dxc4 {[%emt 0:00:07]} 5. Nf3 {[%emt 0:00:12]} c6 {[%emt 0:02:04]} 6. Ne5 {[%emt 0:02:55]} Bb4+ {[%emt 0:00:29]} 7. Nc3 {[%emt 0:00:03]} Nd5 {[%emt 0:01:22]} 8. Qc2 {[%emt 0:07:01]} Nxc3 {[%emt 0:05:22]} 9. bxc3 {[%emt 0:00:19]} Qxd4 {[%emt 0:00:22]} 10. cxb4 {[%emt 0:13:56]} Qxa1 {[%emt 0:00:56]} 11. Nxc4 {[%emt 0:00:07]} O-O {[%emt 0:05:15]} 12. O-O {[%emt 0:00:26]} Qf6 {[%emt 0:00:47]} 13. h4 {[%emt 0:05:39]} h6 {[%emt 0:11:16]} 14. Bb2 {[%emt 0:05:33]} Qe7 {[%emt 0:01:50]} 15. Qc3 {[%emt 0:00:08]} f6 {[%emt 0:00:56]} 16. g4 {[%emt 0:00:49]} e5 {[%emt 0:07:06]} 17. Ne3 {[%emt 0:00:30]} Be6 {[%emt 0:03:36]} 18. Be4 {[%emt 0:00:51]} Na6 {[%emt 0:03:24]} 19. a3 {[%emt 0:29:57]} Nc7 {[%emt 0:02:32]} 20. Bb1 {[%emt 0:02:44]} Nd5 {[%emt 0:09:38]} 21. Qc2 {[%emt 0:00:15]} g6 {[%emt 0:12:39]} 22. g5 {[%emt 0:12:03]} hxg5 {[%emt 0:07:06]} 23. h5 {[%emt 0:08:40]} gxh5 {[%emt 0:04:29]} 24. Bxe5 {[%emt 0:00:12]} Qg7 {[%emt 0:01:54]} 25. Bb2 {[%emt 0:05:00]} Rae8 {[%emt 0:01:01]} 26. Nc4 {[%emt 0:00:19]} Bh3 {[%emt 0:02:14]} 27. Re1 {[%emt 0:01:19]} Re6 {[%emt 0:06:29]} 28. e4 {[%emt 0:01:09]} g4 {[%emt 0:01:12]} 29. Kh2 {[%emt 0:00:52]} Rfe8 {[%emt 0:02:08]} 30. e5 {[%emt 0:01:21]} fxe5 {[%emt 0:01:29]} 31. Rxe5 {[%emt 0:00:07]} Rxe5 {[%emt 0:00:18]} 32. Bxe5 {[%emt 0:01:23]} Rxe5 {[%emt 0:00:13]} 33. Nxe5 {[%emt 0:00:15]} Qxe5+ {[%emt 0:00:04]} 34. Kg1 {[%emt 0:00:07]} Ne7 {[%emt 0:01:15]} 35. Ba2+ {[%emt 0:00:49]} Kg7 {[%emt 0:00:23]} 36. Qd2 {[%emt 0:00:17]} g3 {[%emt 0:01:17]} 37. Bb1 {[%emt 0:01:09]} gxf2+ {[%emt 0:00:32]} 38. Qxf2 {[%emt 0:00:10]} Bf5 {[%emt 0:00:38]} 39. Bxf5 {[%emt 0:00:27]} Nxf5 {[%emt 0:00:07]} 0-1

[Event "17th Memorial Lezcano Montalvo 2025"]
[Site "Gran Canaria"]
[Date "2025.04.15"]
[Round "4.13"]
[White "Gomez Ledo, Roberto Carlos"]
[Black "Bolivar Castro, Alejandro"]
[Result "1-0"]
[Annotator "RC"]
[ECO "B07"]
[WhiteElo "2396"]
[BlackElo "2006"]
[PlyCount "147"]
[EventDate "2025.04.13"]
[EventType "swiss"]
[EventCountry "ESP"]
[SourceTitle "playchess.com"]
[Source "ChessBase"]
[SourceQuality "1"]
[TimeControl "5400+30"]

1. e4 {[%emt 0:02:01]} d6 {[%emt 0:00:06]} 2. d4 {[%emt 0:00:06]} Nf6 {[%emt 0:00:04]} 3. Nc3 {[%emt 0:00:09]} e5 {[%emt 0:00:04]} 4. dxe5 {[%emt 0:00:08]} dxe5 {[%emt 0:00:06]} 5. Qxd8+ {[%emt 0:00:05]} Kxd8 {[%emt 0:00:05]} 6. Bc4 {[%emt 0:00:08]} Bb4 {[%emt 0:00:05]} 7. Bxf7 {[%emt 0:00:28]} Rf8 {[%emt 0:00:06]} 8. Bb3 {[%emt 0:00:21]} Nxe4 {[%emt 0:00:10]} 9. Nge2 {[%emt 0:00:22]} Nc5 {[%emt 0:00:12]} 10. Bc4 {[%emt 0:02:03]} Be6 {[%emt 0:03:01]} 11. Bxe6 {[%emt 0:00:35]} Nxe6 {[%emt 0:00:06]} 12. Bd2 {[%emt 0:01:32]} Nc6 {[%emt 1:32:25]} 13. O-O-O {[%emt 0:03:04]} Kc8 {[%emt 0:00:00]} 14. f3 {[%emt 0:01:13]} b6 {[%emt 0:00:00]} 15. a3 {[%emt 0:00:33]} Bd6 {[%emt 0:00:00]} 16. Ne4 {[%emt 0:03:16]} Kb7 {[%emt 0:00:00]} 17. Bg5 {[%emt 0:11:41]} Nxg5 {[%emt 0:00:00]} 18. Nxg5 {[%emt 0:00:11]} Be7 {[%emt 0:00:00]} 19. Ne4 {[%emt 0:01:55]} Rad8 {[%emt 0:00:00]} 20. Rde1 {[%emt 0:10:58]} Bh4 {[%emt 0:00:00]} 21. N2g3 {[%emt 0:04:02]} g6 {[%emt 0:00:00]} 22. Nf2 {[%emt 0:05:27]} Rd4 {[%emt 0:00:00]} 23. Nd3 {[%emt 0:03:57]} Rfd8 {[%emt 0:00:00]} 24. Kb1 {[%emt 0:06:57]} Bf6 {[%emt 0:00:00]} 25. Ne4 {[%emt 0:01:45]} Be7 {[%emt 0:00:00]} 26. Nef2 {[%emt 0:00:38]} Bd6 {[%emt 0:00:00]} 27. Re2 {[%emt 0:08:26]} h5 {[%emt 0:00:00]} 28. Rhe1 {[%emt 0:04:08]} a5 {[%emt 0:00:00]} 29. Re4 {[%emt 0:07:11]} Rxe4 {[%emt 0:00:00]} 30. Rxe4 {[%emt 0:00:08]} Rf8 {[%emt 0:00:00]} 31. c3 {[%emt 0:00:59]} Kc8 {[%emt 0:00:00]} 32. a4 {[%emt 0:02:16]} Kd7 {[%emt 0:00:00]} 33. Kc2 {[%emt 0:00:16]} Ke6 {[%emt 0:00:00]} 34. Nh3 {[%emt 0:00:41]} Kf6 {[%emt 0:00:00]} 35. Nhf2 {[%emt 0:01:03]} Ke6 {[%emt 0:01:18]} 36. Nd1 {[%emt 0:00:05]} g5 {[%emt 0:02:34]} 37. Ne3 {[%emt 0:00:30]} Rf7 {[%emt 0:00:47]} 38. h4 {[%emt 0:00:57]} Kf6 {[%emt 0:00:54]} 39. Kd1 {[%emt 0:01:59]} Rd7 {[%emt 0:00:33]} 40. Ke2 {[%emt 0:00:16]} Rg7 {[%emt 0:00:28]} 41. Kf1 {[%emt 0:00:51]} Rd7 {[%emt 0:00:20]} 42. Ke2 {[%emt 0:01:52]} Rg7 {[%emt 0:00:05]} 43. hxg5+ {[%emt 0:00:04]} Kxg5 {[%emt 0:00:26]} 44. Rc4 {[%emt 0:02:38]} Ne7 {[%emt 0:01:08]} 45. Nf2 {[%emt 0:00:28]} Nf5 {[%emt 0:01:57]} 46. Ne4+ {[%emt 0:01:30]} Kg6 {[%emt 0:00:15]} 47. Nd5 {[%emt 0:03:04]} Kf7 {[%emt 0:04:41]} 48. g4 {[%emt 0:01:42]} Ke6 {[%emt 0:00:48]} 49. Nxc7+ {[%emt 0:01:29]} Bxc7 {[%emt 0:00:22]} 50. gxf5+ {[%emt 0:00:07]} Kxf5 {[%emt 0:00:12]} 51. Rc6 {[%emt 0:00:09]} Bd8 {[%emt 0:00:31]} 52. Ke3 {[%emt 0:01:28]} Rg6 {[%emt 0:01:27]} 53. Nd6+ {[%emt 0:00:57]} Rxd6 {[%emt 0:01:00]} 54. Rxd6 {[%emt 0:00:01]} Be7 {[%emt 0:00:08]} 55. Rd7 {[%emt 0:00:43]} Bg5+ {[%emt 0:00:16]} 56. Kf2 {[%emt 0:00:18]} Bc1 {[%emt 0:00:34]} 57. b3 {[%emt 0:09:09]} Bb2 {[%emt 0:00:27]} 58. Rf7+ {[%emt 0:00:00]} Kg5 {[%emt 0:00:39]} 59. Rc7 {[%emt 0:00:00]} Ba3 {[%emt 0:00:13]} 60. Rc4 {[%emt 0:00:00]} Bc5+ {[%emt 0:00:20]} 61. Kg3 {[%emt 0:00:00]} Be3 {[%emt 0:00:27]} 62. b4 {[%emt 0:00:00]} axb4 {[%emt 0:00:25]} 63. cxb4 {[%emt 0:00:00]} Bd4 {[%emt 0:00:08]} 64. a5 {[%emt 0:00:00]} bxa5 {[%emt 0:00:03]} 65. bxa5 {[%emt 0:00:00]} h4+ {[%emt 0:00:02]} 66. Kg2 {[%emt 0:00:00]} Kf4 {[%emt 0:00:08]} 67. a6 {[%emt 0:00:00]} h3+ {[%emt 0:00:29]} 68. Kxh3 {[%emt 0:00:00]} Kxf3 {[%emt 0:00:03]} 69. Rxd4 {[%emt 0:00:00]} exd4 {[%emt 0:00:02]} 70. a7 {[%emt 0:00:00]} d3 {[%emt 0:00:04]} 71. a8=Q+ {[%emt 0:00:00]} Ke2 {[%emt 0:00:05]} 72. Qe4+ {[%emt 0:00:00]} Kd2 {[%emt 0:00:34]} 73. Kg2 {[%emt 0:00:00]} Kc3 {[%emt 0:00:11]} 74. Kf1 {[%emt 0:00:00]} 1-0

[Event "17th Memorial Lezcano Montalvo 2025"]
[Site "Gran Canaria"]
[Date "2025.04.15"]
[Round "4.14"]
[White "Barski, Radoslaw"]
[Black "Sanchez Gonzalez, Diego"]
[Result "1-0"]
[Annotator "RC"]
[ECO "B15"]
[WhiteElo "2385"]
[BlackElo "2025"]
[PlyCount "115"]
[EventDate "2025.04.13"]
[EventType "swiss"]
[EventCountry "ESP"]
[SourceTitle "playchess.com"]
[Source "ChessBase"]
[SourceQuality "1"]
[TimeControl "5400+30"]

1. e4 {[%emt 0:02:49]} c6 {[%emt 0:00:05]} 2. d4 {[%emt 0:03:34]} d5 {[%emt 0:00:26]} 3. Nc3 {[%emt 0:00:43]} dxe4 {[%emt 0:02:11]} 4. Nxe4 {[%emt 0:00:06]} Nf6 {[%emt 0:03:04]} 5. Nxf6+ {[%emt 0:00:18]} exf6 {[%emt 0:01:08]} 6. c3 {[%emt 0:00:10]} Bd6 {[%emt 0:02:05]} 7. Bd3 {[%emt 0:00:09]} O-O {[%emt 0:00:27]} 8. Qc2 {[%emt 0:00:08]} g6 {[%emt 0:00:09]} 9. Ne2 {[%emt 0:00:18]} Re8 {[%emt 0:00:13]} 10. h4 {[%emt 0:03:57]} Qe7 {[%emt 0:01:33]} 11. Be3 {[%emt 0:04:32]} Be6 {[%emt 0:00:44]} 12. h5 {[%emt 0:20:09]} Nd7 {[%emt 0:02:59]} 13. O-O-O {[%emt 0:04:16]} f5 {[%emt 0:04:00]} 14. c4 {[%emt 0:12:07]} Rac8 {[%emt 0:08:04]} 15. Kb1 {[%emt 0:06:07]} b5 {[%emt 0:01:29]} 16. c5 {[%emt 0:01:42]} Bc7 {[%emt 0:02:41]} 17. hxg6 {[%emt 0:02:30]} fxg6 {[%emt 0:00:09]} 18. Nf4 {[%emt 0:11:02]} Bxf4 {[%emt 0:01:30]} 19. Bxf4 {[%emt 0:00:04]} Qf7 {[%emt 0:00:07]} 20. b3 {[%emt 0:00:12]} a5 {[%emt 0:00:31]} 21. Rh6 {[%emt 0:03:05]} Nf6 {[%emt 1:07:25]} 22. Rdh1 {[%emt 0:03:13]} Re7 {[%emt 0:00:00]} 23. f3 {[%emt 0:05:02]} Nd5 {[%emt 0:00:00]} 24. Bd6 {[%emt 0:04:02]} Rd7 {[%emt 0:00:00]} 25. Qd2 {[%emt 0:12:45]} Re8 {[%emt 0:00:00]} 26. Be5 {[%emt 0:00:00]} Nb4 {[%emt 0:00:00]} 27. Qg5 {[%emt 0:00:00]} Kf8 {[%emt 0:00:00]} 28. Rxh7 {[%emt 0:00:00]} Qxh7 {[%emt 0:00:00]} 29. Bd6+ {[%emt 0:00:00]} Kg8 {[%emt 0:00:00]} 30. Rxh7 {[%emt 0:00:00]} Kxh7 {[%emt 0:00:00]} 31. Be5 {[%emt 0:00:00]} Rg7 {[%emt 0:00:00]} 32. Be2 {[%emt 0:01:26]} Nd5 {[%emt 0:00:00]} 33. Bd3 {[%emt 0:01:18]} Nb4 {[%emt 0:00:00]} 34. Bc2 {[%emt 0:00:06]} Ree7 {[%emt 0:00:00]} 35. Qh4+ {[%emt 0:00:41]} Kg8 {[%emt 0:00:00]} 36. Bxg7 {[%emt 0:00:10]} Rxg7 {[%emt 0:00:00]} 37. Qd8+ {[%emt 0:00:05]} Kh7 {[%emt 0:00:00]} 38. Qxa5 {[%emt 0:00:24]} Nd5 {[%emt 0:00:00]} 39. Qd8 {[%emt 0:00:30]} Ra7 {[%emt 0:00:32]} 40. Kb2 {[%emt 0:00:38]} b4 {[%emt 0:00:05]} 41. Qg5 {[%emt 0:01:13]} Nc3 {[%emt 0:01:16]} 42. Bb1 {[%emt 0:00:21]} Nd1+ {[%emt 0:00:30]} 43. Kc1 {[%emt 0:00:16]} Nc3 {[%emt 0:00:08]} 44. Qd8 {[%emt 0:02:22]} Rd7 {[%emt 0:01:34]} 45. Qh4+ {[%emt 0:00:00]} Kg7 {[%emt 0:00:08]} 46. Bd3 {[%emt 0:00:01]} Nxa2+ {[%emt 0:00:07]} 47. Kb2 {[%emt 0:00:36]} Nc3 {[%emt 0:00:05]} 48. Bc4 {[%emt 0:00:12]} Bd5 {[%emt 0:02:09]} 49. Qe1 {[%emt 0:00:40]} Kf7 {[%emt 0:01:06]} 50. Qe5 {[%emt 0:00:17]} Re7 {[%emt 0:00:32]} 51. Qb8 {[%emt 0:00:22]} Bxc4 {[%emt 0:01:47]} 52. bxc4 {[%emt 0:00:05]} Re2+ {[%emt 0:00:36]} 53. Kb3 {[%emt 0:00:12]} Nd1 {[%emt 0:00:08]} 54. Qc7+ {[%emt 0:00:14]} Kf8 {[%emt 0:00:22]} 55. Kxb4 {[%emt 0:00:44]} Rb2+ {[%emt 0:00:10]} 56. Ka5 {[%emt 0:00:24]} Ne3 {[%emt 0:00:43]} 57. Qd8+ {[%emt 0:00:48]} Kf7 {[%emt 0:00:09]} 58. Qd7+ {[%emt 0:00:07]} 1-0